bitfinex/quotes_BTCUSD_20241023
["timestamp","ask_amount","ask_price","bid_price","bid_amount"]
[1729693371648,0.001648,66568.0,66567.0,0.77974454]
[1729693371881,0.001648,66568.0,66567.0,0.77774454]
[1729693372634,0.001648,66568.0,66567.0,0.77974454]
[1729693372878,0.001648,66568.0,66567.0,0.77774454]
[1729693374413,0.001648,66568.0,66567.0,0.57998445]
[1729693375589,0.001648,66568.0,66567.0,0.30072781]
[1729693376070,0.001648,66568.0,66567.0,0.30373192]
[1729693376302,0.001648,66568.0,66567.0,0.30072781]
[1729693377007,0.001648,66568.0,66567.0,0.32673192]
[1729693377261,0.001648,66568.0,66567.0,0.32372781]
[1729693380735,0.001648,66568.0,66565.0,0.300457]
[1729693380736,0.08406993,66568.0,66565.0,0.150228]
[1729693380956,0.00252193,66566.0,66565.0,0.150229]
[1729693381449,0.00252193,66566.0,66545.0,0.083]
[1729693381450,0.00752193,66564.0,66554.0,0.17333866]
[1729693381741,0.01018884,66567.0,66560.0,0.15024]
[1729693381742,0.00252193,66561.0,66560.0,0.15024]
[1729693381960,0.001648,66568.0,66567.0,0.150224]
[1729693382185,0.001648,66568.0,66567.0,0.3037317]
[1729693382640,0.001648,66568.0,66567.0,0.30072781]
[1729693382871,0.01712969,66568.0,66567.0,0.42920993]
[1729693383099,0.001648,66568.0,66567.0,0.42620588]
[1729693383341,0.001648,66568.0,66567.0,0.51200588]
[1729693383786,0.001648,66568.0,66567.0,0.51400588]
[1729693384709,0.001648,66568.0,66567.0,0.51300588]
[1729693384956,0.001648,66568.0,66567.0,0.51400588]
[1729693385731,0.001648,66568.0,66567.0,0.51976851]
[1729693386624,0.001648,66577.0,66576.0,0.18068207]
[1729693386870,0.22712545,66589.0,66576.0,0.18068207]
[1729693386871,0.22712545,66589.0,66586.0,0.15765907]
[1729693387102,0.17773572,66589.0,66588.0,0.28265507]
[1729693387340,0.17773572,66589.0,66588.0,0.60649754]
[1729693387562,0.001648,66592.0,66591.0,0.15264807]
[1729693387783,0.001648,66592.0,66591.0,0.59949054]
[1729693389144,0.001648,66592.0,66591.0,0.59701247]
[1729693389388,0.001648,66592.0,66591.0,0.59949054]
[1729693390308,0.001648,66592.0,66591.0,0.59701247]
[1729693390987,0.001648,66592.0,66591.0,0.42367381]
[1729693391665,0.001648,66592.0,66591.0,0.59701247]
[1729693396087,0.001648,66592.0,66591.0,0.59949054]
[1729693396309,0.001648,66592.0,66591.0,0.60149054]
[1729693396559,0.001648,66592.0,66591.0,0.59949054]
[1729693396786,0.001648,66592.0,66591.0,0.60149054]
[1729693397305,0.001648,66592.0,66591.0,0.7778292]
[1729693397530,0.001648,66592.0,66591.0,0.7798292]
[1729693398256,0.001648,66592.0,66591.0,0.60449054]
[1729693401067,0.001648,66592.0,66591.0,0.60425963]
[1729693402184,0.001648,66592.0,66591.0,0.4004429]
[1729693402635,0.001648,66592.0,66591.0,0.3004429]
[1729693403094,0.001648,66592.0,66591.0,0.47378156]
[1729693403573,0.001648,66592.0,66591.0,0.49678156]
[1729693403803,0.001648,66592.0,66591.0,0.59678156]
[1729693404026,0.001648,66592.0,66591.0,0.59925963]
[1729693404688,0.001648,66592.0,66591.0,0.59678156]
[1729693405859,0.001648,66592.0,66591.0,0.4234429]
[1729693406571,0.081448,66592.0,66591.0,0.4234429]
[1729693408228,0.001648,66592.0,66591.0,0.59678156]
[1729693410585,0.001648,66592.0,66591.0,0.60178156]
[1729693411051,0.001648,66592.0,66591.0,0.60425963]
[1729693411289,0.001648,66592.0,66591.0,0.59860241]
[1729693411523,0.001648,66592.0,66591.0,0.60360241]
[1729693413154,0.001648,66592.0,66591.0,0.42278568]
[1729693413384,0.001648,66592.0,66591.0,0.59612434]
[1729693419086,0.001648,66592.0,66591.0,0.60360241]
[1729693419315,0.001648,66592.0,66591.0,0.60560241]
[1729693419796,0.001648,66592.0,66591.0,0.60360241]
[1729693420698,0.001648,66592.0,66591.0,0.60442541]
[1729693423848,0.001648,66592.0,66591.0,0.60642541]
[1729693424771,0.001648,66592.0,66591.0,0.60442541]
[1729693424997,0.001648,66592.0,66591.0,0.60642541]
[1729693425209,0.001648,66592.0,66591.0,0.60442541]
[1729693426643,0.001648,66592.0,66591.0,0.60642541]
[1729693429649,0.001648,66592.0,66591.0,0.60442541]
[1729693431468,0.001648,66592.0,66591.0,0.60642541]
[1729693432799,0.001648,66592.0,66591.0,0.82434871]
[1729693433029,0.001648,66592.0,66591.0,0.60442541]
[1729693433256,0.001648,66592.0,66591.0,0.65122826]
[1729693433731,0.001648,66592.0,66591.0,0.65122738]
[1729693434439,0.001648,66592.0,66591.0,0.60642541]
[1729693435336,0.001648,66592.0,66591.0,1.13524152]
[1729693435577,0.001648,66616.0,66612.0,0.27266317]
[1729693435794,0.001648,66616.0,66612.0,0.44600183]
[1729693436020,0.00742649,66613.0,66612.0,0.44600183]
[1729693436249,0.001648,66616.0,66614.0,0.273118]
[1729693436468,0.001648,66616.0,66614.0,0.27611996]
[1729693436965,0.001648,66616.0,66614.0,0.42910184]
[1729693437195,0.001648,66616.0,66614.0,0.42609988]
[1729693438080,0.001648,66616.0,66614.0,0.43186372]
[1729693438551,0.001648,66616.0,66614.0,0.42938565]
[1729693439005,0.079002,66615.0,66614.0,0.42938565]
[1729693441023,0.17552393,66615.0,66614.0,0.40062181]
[1729693441240,0.17552393,66615.0,66614.0,0.14965818]
[1729693441489,0.08012193,66612.0,66611.0,0.250125]
[1729693441726,0.08012193,66612.0,66611.0,0.150125]
[1729693441727,0.08512193,66612.0,66611.0,0.150125]
[1729693442479,0.09261795,66612.0,66611.0,0.150125]
[1729693442722,0.08512193,66612.0,66611.0,0.150125]
[1729693442943,0.08512193,66612.0,66611.0,0.173125]
[1729693443192,0.0826,66612.0,66611.0,0.173125]
[1729693443479,0.08512193,66612.0,66611.0,0.173125]
[1729693444178,0.095702,66615.0,66608.0,0.300262]
[1729693444179,0.08332193,66609.0,66608.0,0.473396]
[1729693444658,0.17352193,66609.0,66608.0,0.473396]
[1729693445134,0.18101268,66609.0,66608.0,0.473396]
[1729693445614,0.17352193,66609.0,66608.0,0.473396]
[1729693448740,0.17352193,66609.0,66606.0,0.150134]
[1729693448968,0.17352193,66609.0,66598.0,0.17333866]
[1729693448969,0.00752193,66599.0,66598.0,0.150154]
[1729693450290,0.08452193,66599.0,66598.0,0.173154]
[1729693450544,0.09200085,66599.0,66598.0,0.173154]
[1729693451306,0.08447892,66599.0,66598.0,0.173154]
[1729693451562,0.08447892,66599.0,66598.0,0.32365781]
[1729693451563,0.082,66599.0,66598.0,0.32365781]
[1729693452068,0.07952193,66599.0,66598.0,0.32365781]
[1729693452542,0.08452193,66599.0,66598.0,0.32365781]
[1729693455757,0.00252193,66595.0,66594.0,0.300326]
[1729693456025,0.0925,66601.0,66591.0,0.000823]
[1729693456026,0.17932193,66592.0,66591.0,0.000823]
[1729693456316,0.1768,66592.0,66591.0,0.150993]
[1729693456563,0.17932193,66592.0,66591.0,0.150993]
[1729693457066,0.17932193,66592.0,66591.0,0.30149681]
[1729693457067,0.0804,66592.0,66591.0,0.30149681]
[1729693457308,0.0804,66592.0,66591.0,0.32449681]
[1729693458267,0.00252193,66595.0,66593.0,0.300331]
[1729693458523,0.00752193,66595.0,66594.0,0.32366681]
[1729693459257,0.08112193,66598.0,66597.0,0.173156]
[1729693459547,0.0786,66598.0,66597.0,0.32365981]
[1729693459767,0.00752193,66600.0,66598.0,0.023]
[1729693459981,0.00752193,66600.0,66599.0,0.173152]
[1729693460438,0.00752193,66600.0,66599.0,0.32365581]
[1729693460656,0.0786,66603.0,66600.0,0.023]
[1729693460878,0.0786,66603.0,66602.0,0.173145]
[1729693461125,0.0993,66606.0,66602.0,0.173145]
[1729693461126,0.00252193,66605.0,66604.0,0.173141]
[1729693461338,0.00752193,66605.0,66604.0,0.32364481]
[1729693461561,0.0769,66608.0,66607.0,0.150134]
[1729693461780,0.0769,66608.0,66607.0,0.17267417]
[1729693462476,0.07942193,66608.0,66607.0,0.17267417]
[1729693462920,0.07942193,66608.0,66607.0,0.32317798]
[1729693462921,0.0769,66608.0,66607.0,0.32317798]
[1729693463365,0.000823,66612.0,66611.0,0.150125]
[1729693463598,0.000823,66612.0,66611.0,0.49696747]
[1729693463853,0.008798,66612.0,66611.0,0.49696747]
[1729693464075,0.000823,66612.0,66611.0,0.49696747]
[1729693464595,0.000823,66612.0,66611.0,0.59696747]
[1729693464841,0.000823,66612.0,66611.0,0.59944554]
[1729693465765,0.000823,66612.0,66611.0,0.60444554]
[1729693466480,0.000823,66612.0,66611.0,0.95859993]
[1729693467602,0.000823,66612.0,66611.0,0.78526127]
[1729693467825,0.000823,66612.0,66611.0,0.78690727]
[1729693468305,0.000823,66612.0,66611.0,0.96024593]
[1729693468771,0.001702,66628.0,66627.0,0.02747807]
[1729693469040,0.22547745,66634.0,66633.0,0.27755307]
[1729693469273,0.1427862,66634.0,66633.0,0.59939554]
[1729693469529,0.22547745,66646.0,66633.0,0.59939554]
[1729693469530,0.00752193,66651.0,66634.0,0.27555107]
[1729693469769,0.22547745,66645.0,66634.0,0.60639354]
[1729693469985,0.22547745,66645.0,66634.0,0.43105488]
[1729693470875,0.22547745,66645.0,66634.0,0.43305488]
[1729693471333,0.22547745,66645.0,66634.0,0.43884912]
[1729693472744,0.22547745,66645.0,66634.0,0.43684912]
[1729693472961,0.22547745,66645.0,66634.0,0.43184912]
[1729693473195,0.22547745,66645.0,66634.0,0.33684912]
[1729693474775,0.00775184,66647.0,66634.0,0.33684912]
[1729693474776,0.005,66647.0,66634.0,0.43684912]
[1729693474995,0.22547745,66644.0,66634.0,0.43684912]
[1729693476185,0.00775184,66648.0,66634.0,0.61018778]
[1729693476410,0.22547745,66643.0,66634.0,0.61018778]
[1729693479614,0.22547745,66643.0,66634.0,0.61218778]
[1729693479839,0.00275184,66648.0,66634.0,0.61018778]
[1729693479840,0.00775184,66648.0,66634.0,0.61018778]
[1729693480999,0.005,66648.0,66634.0,0.61218778]
[1729693481243,0.00798175,66651.0,66634.0,0.61195787]
[1729693483085,0.22547745,66653.0,66652.0,0.150033]
[1729693483323,0.22547745,66653.0,66652.0,0.32353681]
[1729693483554,0.10128175,66654.0,66653.0,0.17303]
[1729693483794,0.02048175,66654.0,66653.0,0.54901126]
[1729693484037,0.0125,66654.0,66653.0,0.32353381]
[1729693485719,0.0125,66654.0,66653.0,0.32935372]
[1729693488389,0.0125,66654.0,66653.0,0.32353381]
[1729693488390,0.19238175,66654.0,66653.0,0.32353381]
[1729693488638,0.19738175,66654.0,66653.0,0.32353381]
[1729693489331,0.18488175,66654.0,66653.0,0.32353381]
[1729693491227,0.18488175,66654.0,66653.0,0.3233039]
[1729693491464,0.18488175,66654.0,66650.0,0.47341266]
[1729693491465,0.18488175,66654.0,66650.0,0.47340966]
[1729693491696,0.18488175,66654.0,66652.0,0.300064]
[1729693491892,0.18488175,66654.0,66653.0,0.15003]
[1729693492164,0.1769,66654.0,66653.0,0.15003]
[1729693492404,0.18488175,66654.0,66653.0,0.15003]
[1729693492845,0.18570475,66654.0,66653.0,0.15003]
[1729693493511,0.18570475,66654.0,66653.0,0.17303]
[1729693499401,0.09180475,66654.0,66653.0,0.17303]
[1729693499660,0.083823,66654.0,66653.0,0.17303]
[1729693500560,0.09180475,66654.0,66653.0,0.17303]
[1729693501274,0.09180475,66654.0,66653.0,0.17280009]
[1729693501501,0.005,66653.0,66652.0,0.023]
[1729693501734,0.00800409,66653.0,66652.0,0.023]
[1729693502172,0.02309001,66653.0,66652.0,0.023]
[1729693504461,0.02607176,66653.0,66652.0,0.023]
[1729693504752,0.00798175,66651.0,66647.0,0.150042]
[1729693504975,0.00798175,66648.0,66647.0,0.150042]
[1729693505671,0.02306767,66648.0,66647.0,0.150042]
[1729693505917,0.00798175,66648.0,66647.0,0.150042]
[1729693506143,0.0759,66651.0,66650.0,0.173037]
[1729693506144,0.08388175,66651.0,66650.0,0.173037]
[1729693506375,0.08388175,66651.0,66650.0,0.49687947]
[1729693506619,0.005,66657.0,66653.0,0.15003]
[1729693506620,0.005823,66654.0,66653.0,0.15003]
[1729693506842,0.000823,66654.0,66653.0,0.32353381]
[1729693507074,0.01206317,66654.0,66653.0,0.32353381]
[1729693507339,0.000823,66654.0,66653.0,0.32353381]
[1729693508719,0.00880475,66654.0,66653.0,0.17303]
[1729693510436,0.00880475,66654.0,66653.0,0.32353381]
[1729693511431,0.00880475,66654.0,66653.0,0.32307298]
[1729693512141,0.0238417,66654.0,66653.0,0.32307298]
[1729693514099,0.01585995,66654.0,66653.0,0.32307298]
[1729693514332,0.000823,66654.0,66653.0,0.32307298]
[1729693515334,0.000823,66654.0,66653.0,0.99978909]
[1729693515568,0.000823,66654.0,66653.0,0.86733703]
[1729693515788,0.000823,66654.0,66653.0,0.77632989]
[1729693516235,0.000823,66654.0,66653.0,0.60299123]
[1729693516463,0.000823,66654.0,66653.0,0.77632989]
[1729693516687,0.000823,66654.0,66653.0,0.77797389]
[1729693516912,0.000823,66654.0,66653.0,0.60463523]
[1729693517831,0.000823,66654.0,66653.0,0.42673523]
[1729693518969,0.000823,66654.0,66653.0,0.60007389]
[1729693519411,0.000823,66654.0,66653.0,0.59805564]
[1729693519636,0.000823,66654.0,66653.0,0.60007389]
[1729693519883,0.000823,66654.0,66653.0,0.77541255]
[1729693520167,0.0017,66659.0,66658.0,0.62171457]
[1729693520390,0.0017,66659.0,66658.0,0.94361838]
[1729693520613,0.0017,66666.0,66665.0,0.42334166]
[1729693520845,0.0017,66666.0,66665.0,0.59886372]
[1729693521306,0.0017,66666.0,66665.0,0.59863381]
[1729693521806,9e-05,66672.0,66671.0,0.70668557]
[1729693522036,0.0017,66676.0,66675.0,0.61965832]
[1729693522268,0.0017,66676.0,66675.0,0.77718038]
[1729693522497,0.0125,66684.0,66683.0,0.249963]
[1729693522747,0.0125,66684.0,66683.0,0.59680547]
[1729693526501,0.0125,66684.0,66683.0,0.59882372]
[1729693527451,0.0125,66684.0,66683.0,0.6047487]
[1729693529292,0.013324,66684.0,66683.0,0.6067487]
[1729693529559,0.013324,66684.0,66683.0,0.6047487]
[1729693530012,0.017635,66696.0,66695.0,0.61961332]
[1729693530250,0.017635,66696.0,66695.0,0.77713538]
[1729693530486,0.02851106,66696.0,66695.0,0.77713538]
[1729693530721,0.017635,66696.0,66695.0,0.95533538]
[1729693530949,0.0017,66701.0,66700.0,0.28194325]
[1729693531181,0.0017,66701.0,66700.0,0.78212217]
[1729693531407,0.0017,66701.0,66700.0,0.77689447]
[1729693532559,0.0017,66701.0,66700.0,0.78279241]
[1729693532786,0.0017,66701.0,66700.0,0.83230033]
[1729693533773,0.0017,66701.0,66700.0,0.83430033]
[1729693534484,0.0017,66701.0,66700.0,0.78479241]
[1729693535593,0.0017,66701.0,66700.0,0.83430033]
[1729693536595,0.0017,66701.0,66700.0,0.83230033]
[1729693536859,0.0017,66701.0,66700.0,0.78279241]
[1729693537123,0.0017,66701.0,66700.0,0.91279241]
[1729693538575,0.0017,66701.0,66700.0,0.78279241]
[1729693540568,0.0017,66701.0,66700.0,0.42932675]
[1729693540849,0.0017,66701.0,66700.0,0.57966541]
[1729693541348,0.0017,66701.0,66700.0,0.3001989]
[1729693541590,0.00491166,66701.0,66700.0,0.3001989]
[1729693542571,0.00491166,66701.0,66700.0,0.47353756]
[1729693542824,0.00491166,66701.0,66700.0,0.59653756]
[1729693543342,0.00491166,66701.0,66700.0,0.24969509]
[1729693544306,0.01291575,66701.0,66698.0,0.299858]
[1729693544554,0.00821166,66696.0,66695.0,0.449806]
[1729693544798,0.00321166,66690.0,66689.0,0.449848]
[1729693545032,0.07931166,66690.0,66689.0,0.449848]
[1729693545870,0.08431166,66690.0,66689.0,0.449848]
[1729693546344,0.08431166,66690.0,66689.0,0.62318666]
[1729693547068,0.08431166,66690.0,66689.0,0.64618666]
[1729693548030,0.08431166,66690.0,66689.0,0.472848]
[1729693551316,0.08431166,66690.0,66689.0,0.47261838]
[1729693553698,0.08431166,66690.0,66689.0,0.47426438]
[1729693554900,0.08431166,66690.0,66689.0,0.79810685]
[1729693554901,0.07931166,66690.0,66689.0,0.79810685]
[1729693555382,0.00821166,66693.0,66692.0,0.149943]
[1729693555632,0.00821166,66693.0,66692.0,0.32344681]
[1729693556099,0.00821166,66694.0,66693.0,0.17294]
[1729693556331,0.00821166,66695.0,66694.0,0.149938]
[1729693556558,0.00821166,66695.0,66694.0,0.172938]
[1729693556804,0.005,66695.0,66694.0,0.172938]
[1729693557027,0.08391166,66696.0,66695.0,0.172936]
[1729693557520,0.08391166,66696.0,66695.0,0.32343981]
[1729693559750,0.00382709,66700.0,66695.0,0.32343981]
[1729693559751,0.005823,66700.0,66699.0,0.172927]
[1729693559994,0.00903466,66700.0,66699.0,0.49676947]
[1729693560466,0.005823,66700.0,66699.0,0.49676947]
[1729693560708,0.005823,66700.0,66699.0,0.59676947]
[1729693560709,0.000823,66700.0,66699.0,0.59676947]
[1729693561508,0.000823,66700.0,66699.0,0.59653956]
[1729693562038,0.00403466,66700.0,66699.0,0.4232009]
[1729693562266,0.00403466,66700.0,66699.0,0.17269709]
[1729693562267,0.18743466,66700.0,66699.0,0.17269709]
[1729693562501,0.18743466,66700.0,66698.0,0.299858]
[1729693562502,0.00321166,66699.0,66695.0,0.023]
[1729693562728,0.00821166,66696.0,66695.0,0.54891726]
[1729693563206,0.005,66696.0,66695.0,0.32343981]
[1729693563438,0.00321166,66699.0,66698.0,0.172929]
[1729693563670,0.00321166,66699.0,66698.0,0.32343281]
[1729693565530,0.00321166,66699.0,66698.0,0.149929]
[1729693565754,0.00621575,66699.0,66698.0,0.149929]
[1729693565972,0.01121575,66699.0,66698.0,0.149929]
[1729693566454,0.00821166,66699.0,66698.0,0.149929]
[1729693567121,0.00821166,66699.0,66698.0,0.172929]
[1729693567351,0.00821166,66699.0,66698.0,0.174575]
[1729693568358,0.01121575,66699.0,66698.0,0.174575]
[1729693571441,0.0221764,66699.0,66698.0,0.17434509]
[1729693571791,0.01121575,66699.0,66698.0,0.17434509]
[1729693571989,0.01121575,66699.0,66698.0,0.024646]
[1729693572200,0.01121575,66699.0,66698.0,0.151575]
[1729693572409,0.0221764,66699.0,66698.0,0.151575]
[1729693572842,0.01121575,66699.0,66698.0,0.151575]
[1729693573458,0.00821166,66699.0,66698.0,0.151575]
[1729693574576,0.00821166,66699.0,66698.0,0.174575]
[1729693574833,0.083623,66700.0,66698.0,0.174575]
[1729693574834,0.000823,66700.0,66699.0,0.272927]
[1729693575100,0.000823,66700.0,66699.0,0.42343081]
[1729693576493,0.000823,66700.0,66699.0,0.42922316]
[1729693577358,0.000823,66700.0,66699.0,0.60256182]
[1729693577599,0.000823,66700.0,66699.0,0.61135016]
[1729693577841,0.000823,66700.0,66699.0,0.78295016]
[1729693578540,0.000823,66700.0,66699.0,0.95628882]
[1729693578773,0.00321166,66716.0,66699.0,0.95628882]
[1729693578774,0.22547745,66719.0,66717.0,0.272886]
[1729693579013,0.22547745,66719.0,66717.0,0.59672847]
[1729693579236,0.00321166,66723.0,66717.0,0.59672847]
[1729693579457,0.00821166,66723.0,66717.0,0.59672847]
[1729693579680,0.00821166,66723.0,66717.0,0.42338981]
[1729693579681,0.00321166,66719.0,66717.0,0.42338981]
[1729693579906,0.01421166,66718.0,66717.0,0.272886]
[1729693580138,0.01421166,66718.0,66717.0,0.172886]
[1729693581033,0.01421166,66718.0,66717.0,0.023]
[1729693581255,0.01421166,66718.0,66714.0,0.299782]
[1729693581256,0.0828,66717.0,66716.0,0.172888]
[1729693581481,0.0828,66717.0,66716.0,0.17265809]
[1729693581482,0.08580409,66717.0,66716.0,0.17265809]
[1729693582859,0.00821166,66713.0,66712.0,0.299793]
[1729693583160,0.00821166,66700.0,66699.0,0.151573]
[1729693583377,0.00821166,66700.0,66699.0,0.001646]
[1729693583378,0.26395032,66700.0,66699.0,0.001646]
[1729693583589,0.24553666,66700.0,66699.0,0.001646]
[1729693583816,0.35272739,66700.0,66699.0,0.001646]
[1729693584042,0.20280239,66700.0,66699.0,0.001646]
[1729693584291,0.35773148,66700.0,66699.0,0.001646]
[1729693584513,0.35272739,66700.0,66699.0,0.001646]
[1729693584727,0.20280239,66700.0,66699.0,0.001646]
[1729693584954,0.20580648,66700.0,66699.0,0.001646]
[1729693585168,0.35573148,66700.0,66699.0,0.001646]
[1729693585380,0.19780239,66700.0,66699.0,0.174573]
[1729693585604,0.19780239,66700.0,66699.0,0.001646]
[1729693585822,0.20280239,66700.0,66699.0,0.001646]
[1729693586246,0.20280239,66700.0,66699.0,0.151573]
[1729693586461,0.20280239,66700.0,66699.0,0.001646]
[1729693586687,0.20280239,66700.0,66699.0,0.151573]
[1729693586948,0.20280239,66700.0,66699.0,0.174573]
[1729693586949,0.10170239,66700.0,66699.0,0.174573]
[1729693587162,0.09061166,66700.0,66699.0,0.174573]
[1729693587384,0.09061166,66700.0,66699.0,0.001646]
[1729693587600,0.09861575,66700.0,66699.0,0.001646]
[1729693587815,0.10957108,66700.0,66699.0,0.001646]
[1729693588256,0.10656699,66700.0,66699.0,0.001646]
[1729693589124,0.10156699,66700.0,66699.0,0.151573]
[1729693589647,0.09061166,66700.0,66699.0,0.151573]
[1729693591449,0.09061166,66700.0,66699.0,0.15134309]
[1729693591938,0.10156699,66700.0,66699.0,0.15134309]
[1729693592205,0.24553666,66700.0,66699.0,0.00141609]
[1729693592444,0.24854075,66700.0,66699.0,0.00141609]
[1729693592660,0.25949608,66700.0,66699.0,0.00141609]
[1729693593090,0.11039408,66700.0,66699.0,0.00141609]
[1729693593549,0.35621908,66700.0,66699.0,0.00141609]
[1729693593778,0.77080542,66700.0,66699.0,0.00141609]
[1729693593994,0.77080542,66700.0,66698.0,0.00079927]
[1729693593995,0.34847732,66699.0,66698.0,0.00079927]
[1729693594249,0.6644337,66699.0,66698.0,0.00079927]
[1729693594483,0.6624337,66699.0,66698.0,0.00079927]
[1729693594748,0.63492971,66699.0,66698.0,0.00079927]
[1729693594975,0.37295822,66699.0,66698.0,0.00079927]
[1729693595178,0.34954656,66699.0,66698.0,0.00079927]
[1729693595634,0.43914886,66699.0,66698.0,0.00079927]
[1729693595871,0.25131155,66699.0,66698.0,0.00079927]
[1729693596151,0.25431564,66699.0,66698.0,0.00079927]
[1729693597063,0.57066872,66699.0,66698.0,0.00079927]
[1729693597304,0.66585547,66699.0,66698.0,0.00079927]
[1729693597537,0.75548888,66699.0,66698.0,0.00079927]
[1729693598239,0.90399269,66699.0,66698.0,0.00079927]
[1729693600483,0.35743265,66699.0,66698.0,0.00079927]
[1729693601192,0.42461678,66699.0,66698.0,0.00079927]
[1729693601429,0.35743265,66699.0,66698.0,0.00056936]
[1729693601647,0.02416699,66699.0,66698.0,0.00056936]
[1729693601875,0.02717108,66699.0,66698.0,0.00056936]
[1729693602108,0.03717108,66699.0,66698.0,0.00056936]
[1729693602320,0.02717108,66699.0,66698.0,0.00056936]
[1729693602606,0.02217108,66699.0,66698.0,0.00056936]
[1729693602851,0.00821166,66699.0,66698.0,0.15049836]
[1729693603550,0.00821166,66699.0,66698.0,0.00056936]
[1729693603773,0.01902417,66699.0,66698.0,0.00056936]
[1729693604704,0.02402417,66699.0,66698.0,0.00056936]
[1729693605391,0.02402417,66699.0,66698.0,0.00048519]
[1729693606545,0.01321166,66699.0,66698.0,0.00048519]
[1729693606763,0.02402417,66699.0,66698.0,0.00048519]
[1729693606985,0.01902417,66699.0,66698.0,0.00048519]
[1729693607198,0.02202826,66699.0,66698.0,0.17341419]
[1729693607438,0.01346446,66699.0,66698.0,0.17341419]
[1729693608398,0.01046037,66699.0,66698.0,0.17341419]
[1729693610774,0.000823,66700.0,66699.0,0.172927]
[1729693611027,0.000823,66700.0,66699.0,0.59976781]
[1729693611267,0.000823,66700.0,66699.0,0.70185781]
[1729693611542,0.000823,66700.0,66699.0,0.7016279]
[1729693611939,0.000823,66700.0,66699.0,0.7036279]
[1729693612149,0.22547745,66716.0,66715.0,0.249891]
[1729693612374,0.22547745,66716.0,66715.0,0.42339481]
[1729693612576,0.00921166,66718.0,66715.0,0.27350381]
[1729693612826,0.00921166,66718.0,66717.0,0.32322466]
[1729693613050,0.00921166,66718.0,66717.0,0.49672847]
[1729693614155,0.01421166,66718.0,66717.0,0.49672847]
[1729693614371,0.00921166,66718.0,66717.0,0.49672847]
[1729693614789,0.00921166,66718.0,66717.0,0.59672847]
[1729693616748,0.01003466,66718.0,66717.0,0.59672847]
[1729693619794,0.01503466,66718.0,66717.0,0.59672847]
[1729693620023,0.006823,66718.0,66717.0,0.59672847]
[1729693621617,0.006823,66718.0,66717.0,1.17538476]
[1729693621841,0.006823,66718.0,66717.0,0.77656865]
[1729693622963,0.006823,66718.0,66717.0,0.94990731]
[1729693623673,0.006823,66718.0,66717.0,0.32292999]
[1729693623908,0.01003466,66718.0,66717.0,0.47326865]
[1729693624147,0.006823,66718.0,66717.0,0.47326865]
[1729693624384,0.06905963,66720.0,66719.0,0.15667034]
[1729693624623,0.06905963,66720.0,66719.0,0.30917415]
[1729693624847,0.06905963,66720.0,66719.0,0.30717415]
[1729693625068,0.06905963,66720.0,66719.0,0.43017415]
[1729693625297,0.06905963,66720.0,66719.0,0.43217415]
[1729693626008,0.06905963,66720.0,66719.0,0.43017415]
[1729693626241,0.06905963,66720.0,66719.0,0.43217415]
[1729693626477,0.06905963,66720.0,66719.0,0.43017415]
[1729693626701,0.06905963,66720.0,66719.0,0.77685147]
[1729693627172,0.06905963,66720.0,66719.0,0.77885147]
[1729693628859,0.03907795,66720.0,66719.0,0.77885147]
[1729693629523,0.03990095,66720.0,66719.0,0.77885147]
[1729693629766,0.000823,66720.0,66719.0,0.77885147]
[1729693631587,0.000823,66720.0,66719.0,0.77862156]
[1729693633255,0.22547745,66742.0,66741.0,0.272832]
[1729693633535,0.19700015,66742.0,66741.0,0.59667447]
[1729693633763,0.01114666,66742.0,66741.0,0.59846281]
[1729693633987,0.002,66750.0,66749.0,0.172814]
[1729693634239,0.002,66750.0,66749.0,0.59665647]
[1729693634475,0.01314666,66750.0,66749.0,0.82213392]
[1729693634702,0.01314666,66750.0,66749.0,0.59665647]
[1729693634703,0.002,66750.0,66749.0,0.59665647]
[1729693636145,0.00021166,66753.0,66752.0,0.149808]
[1729693636365,0.00021166,66753.0,66752.0,0.42331181]
[1729693636366,0.07711166,66753.0,66752.0,0.42331181]
[1729693636810,0.08825832,66753.0,66752.0,0.42331181]
[1729693637029,0.07711166,66753.0,66752.0,0.42331181]
[1729693638412,0.08234157,66753.0,66752.0,0.17350381]
[1729693638659,0.08234157,66753.0,66752.0,0.32331181]
[1729693638878,0.09348823,66753.0,66752.0,0.32331181]
[1729693640047,0.08234157,66753.0,66752.0,0.32331181]
[1729693640289,0.09359858,66753.0,66752.0,0.32331181]
[1729693640944,0.08234157,66753.0,66752.0,0.32331181]
[1729693641162,0.08234157,66753.0,66752.0,0.172808]
[1729693641618,0.09359858,66753.0,66752.0,0.17257809]
[1729693641836,0.08234157,66753.0,66752.0,0.17257809]
[1729693642051,0.08316457,66753.0,66752.0,0.17257809]
[1729693642289,0.07793466,66753.0,66752.0,0.4230819]
[1729693642557,0.000823,66753.0,66752.0,0.4230819]
[1729693644420,0.000823,66753.0,66752.0,0.42885723]
[1729693651767,0.000823,66753.0,66752.0,0.42862723]
[1729693652731,0.000823,66753.0,66752.0,0.60673598]
[1729693652970,0.000823,66753.0,66752.0,0.69402432]
[1729693653689,0.000823,66753.0,66752.0,0.51868566]
[1729693654176,0.000823,66753.0,66752.0,0.52068566]
[1729693654643,0.000823,66753.0,66752.0,0.52233166]
[1729693655596,0.000823,66753.0,66752.0,0.52033166]
[1729693655601,0.000823,66753.0,66752.0,0.43504332]
[1729693655852,0.100823,66753.0,66752.0,0.43504332]
[1729693657326,0.100823,66753.0,66752.0,0.30195781]
[1729693658549,0.10103466,66753.0,66752.0,0.30195781]
[1729693658800,0.10626457,66753.0,66752.0,0.151454]
[1729693659073,0.21726118,66753.0,66752.0,0.001646]
[1729693659316,0.30366118,66753.0,66752.0,0.001646]
[1729693659551,0.00522991,66748.0,66747.0,0.37529645]
[1729693659827,0.00021166,66740.0,66739.0,0.39881611]
[1729693660093,0.00021166,66740.0,66739.0,0.52581826]
[1729693660356,0.00021166,66740.0,66730.0,0.17333866]
[1729693660357,0.00021166,66733.0,66732.0,0.37533045]
[1729693660633,0.00021166,66733.0,66732.0,0.52583426]
[1729693660867,0.00021166,66733.0,66732.0,0.30035681]
[1729693661574,0.00021166,66733.0,66732.0,0.3231269]
[1729693661810,0.00021166,66733.0,66732.0,0.4231269]
[1729693664868,0.00021166,66733.0,66726.0,0.17918442]
[1729693664869,0.00544157,66727.0,66725.0,0.00259638]
[1729693665093,0.01516281,66726.0,66725.0,0.22547745]
[1729693665348,0.00544157,66726.0,66717.0,0.22712345]
[1729693665570,0.00544157,66726.0,66725.0,0.149868]
[1729693665810,0.00544157,66726.0,66724.0,0.149869]
[1729693666032,0.00544157,66726.0,66725.0,0.149868]